[Event "Early-Titled-Tuesday-Blitz-January-16-2024"]
[Site "Chess.com"]
[Date "2024.01.16"]
[Round "2"]
[White "Allion2017"]
[Black "RCone"]
[Result "0-1"]
[WhiteElo "2020"]
[BlackElo "2445"]
[TimeControl "180+1"]
[EndTime "8:14:53 PST"]
[Termination "RCone won by resignation"]

1. d4 {[%clk 0:03:00.9]} 1... g6 {[%clk 0:02:59.4]} 2. c4 {[%clk 0:03:00.5]}
2... Bg7 {[%clk 0:02:58.6]} 3. e4 {[%clk 0:03:01.2]} 3... d6 {[%clk 0:02:58.5]}
4. f3 {[%clk 0:03:01.5]} 4... Nf6 {[%clk 0:02:59]} 5. Nc3 {[%clk 0:03:00.9]}
5... O-O {[%clk 0:02:57.9]} 6. Be3 {[%clk 0:03:01.4]} 6... e5 {[%clk 0:02:57.9]}
7. d5 {[%clk 0:03:00.8]} 7... Nh5 {[%clk 0:02:57.6]} 8. Nge2 {[%clk 0:02:58.2]}
8... f5 {[%clk 0:02:55.1]} 9. Qd2 {[%clk 0:02:58]} 9... fxe4 {[%clk 0:02:42.3]}
10. fxe4 {[%clk 0:02:56.9]} 10... a6 {[%clk 0:02:19.7]} 11. O-O-O {[%clk
0:02:56.3]} 11... b5 {[%clk 0:02:15.2]} 12. c5 {[%clk 0:02:55.8]} 12... b4
{[%clk 0:02:12]} 13. Na4 {[%clk 0:02:55]} 13... a5 {[%clk 0:02:06.6]} 14. Kb1
{[%clk 0:02:54.7]} 14... Nd7 {[%clk 0:01:38.3]} 15. Nc1 {[%clk 0:02:49.4]} 15...
Ndf6 {[%clk 0:01:27.5]} 16. Bd3 {[%clk 0:02:43.3]} 16... Ng4 {[%clk 0:01:24.3]}
17. Bg1 {[%clk 0:02:41.9]} 17... Bh6 {[%clk 0:01:17.2]} 18. Qc2 {[%clk
0:02:33.7]} 18... Ne3 {[%clk 0:01:15.8]} 19. Bxe3 {[%clk 0:02:20.7]} 19... Bxe3
{[%clk 0:01:16.7]} 20. cxd6 {[%clk 0:02:19.9]} 20... cxd6 {[%clk 0:01:16.4]} 21.
Nb6 {[%clk 0:02:11.5]} 21... Qxb6 {[%clk 0:01:14.1]} 0-1

[Event "Early-Titled-Tuesday-Blitz-January-16-2024"]
[Site "Chess.com"]
[Date "2024.01.16"]
[Round "2"]
[White "UnTucopalaTimba"]
[Black "crazy_m_attack"]
[Result "0-1"]
[WhiteElo "2015"]
[BlackElo "2443"]
[TimeControl "180+1"]
[EndTime "8:15:03 PST"]
[Termination "crazy_m_attack won by resignation"]

1. e4 {[%clk 0:03:00]} 1... e5 {[%clk 0:03:00]} 2. Nf3 {[%clk 0:02:59.7]} 2...
Nc6 {[%clk 0:03:00.3]} 3. Bb5 {[%clk 0:02:59.4]} 3... a6 {[%clk 0:03:00.4]} 4.
Ba4 {[%clk 0:02:58.7]} 4... Nf6 {[%clk 0:03:00.7]} 5. O-O {[%clk 0:02:58.5]}
5... Be7 {[%clk 0:03:01.2]} 6. Re1 {[%clk 0:02:55.1]} 6... b5 {[%clk 0:03:01.5]}
7. Bb3 {[%clk 0:02:54.9]} 7... O-O {[%clk 0:03:02.2]} 8. c3 {[%clk 0:02:52.5]}
8... d5 {[%clk 0:03:02.4]} 9. exd5 {[%clk 0:02:46.1]} 9... Nxd5 {[%clk
0:03:03.3]} 10. Nxe5 {[%clk 0:02:42.6]} 10... Nxe5 {[%clk 0:03:04.2]} 11. Rxe5
{[%clk 0:02:42.7]} 11... c6 {[%clk 0:03:04.9]} 12. d4 {[%clk 0:02:40.9]} 12...
Bd6 {[%clk 0:03:05.1]} 13. Re1 {[%clk 0:02:38]} 13... Qh4 {[%clk 0:03:05.3]} 14.
g3 {[%clk 0:02:37.1]} 14... Qh3 {[%clk 0:03:05.5]} 15. Qe2 {[%clk 0:02:27.5]}
15... Bg4 {[%clk 0:02:59.6]} 16. Qf1 {[%clk 0:02:26.6]} 16... Qh5 {[%clk
0:02:58.7]} 17. Nd2 {[%clk 0:02:22.8]} 17... Rae8 {[%clk 0:02:54.3]} 18. Bxd5
{[%clk 0:01:52.1]} 18... cxd5 {[%clk 0:02:48]} 19. b3 {[%clk 0:01:48.5]} 19...
Bh3 {[%clk 0:02:45.8]} 20. Rxe8 {[%clk 0:01:38.2]} 20... Rxe8 {[%clk 0:02:46.7]}
21. Bb2 {[%clk 0:01:24.9]} 21... Bxf1 {[%clk 0:02:44.9]} 22. Rxf1 {[%clk
0:01:25.3]} 22... Re2 {[%clk 0:02:44.2]} 23. Bc1 {[%clk 0:01:21]} 23... h6
{[%clk 0:02:41.9]} 24. a4 {[%clk 0:01:09.8]} 24... Qf5 {[%clk 0:02:37.5]} 25.
axb5 {[%clk 0:01:06.7]} 25... axb5 {[%clk 0:02:38.4]} 26. Kg2 {[%clk 0:01:03.5]}
26... Qc2 {[%clk 0:02:35.5]} 27. Nf3 {[%clk 0:00:59]} 27... Qxc3 {[%clk
0:02:33.6]} 0-1

[Event "Early-Titled-Tuesday-Blitz-January-16-2024"]
[Site "Chess.com"]
[Date "2024.01.16"]
[Round "2"]
[White "abelmat"]
[Black "ahmedkandiliii"]
[Result "0-1"]
[WhiteElo "2075"]
[BlackElo "2453"]
[TimeControl "180+1"]
[EndTime "8:15:05 PST"]
[Termination "ahmedkandiliii won by checkmate"]

1. d4 {[%clk 0:03:00.8]} 1... Nf6 {[%clk 0:02:58.4]} 2. c4 {[%clk 0:03:00]} 2...
g6 {[%clk 0:02:59]} 3. Nc3 {[%clk 0:02:59.8]} 3... d5 {[%clk 0:02:59.6]} 4. Nf3
{[%clk 0:02:59.1]} 4... Bg7 {[%clk 0:02:59.4]} 5. g3 {[%clk 0:02:59.3]} 5... O-O
{[%clk 0:02:57.1]} 6. Bg2 {[%clk 0:02:59.4]} 6... c6 {[%clk 0:02:56.5]} 7. O-O
{[%clk 0:02:55.7]} 7... dxc4 {[%clk 0:02:56.5]} 8. Ne5 {[%clk 0:02:55.4]} 8...
b5 {[%clk 0:02:51.3]} 9. Nxc6 {[%clk 0:02:36.6]} 9... Nxc6 {[%clk 0:02:50.4]}
10. Bxc6 {[%clk 0:02:36.5]} 10... Bh3 {[%clk 0:02:50.1]} 11. Bxa8 {[%clk
0:02:18.8]} 11... Qxa8 {[%clk 0:02:47.8]} 12. f3 {[%clk 0:02:10.5]} 12... b4
{[%clk 0:02:43.3]} 13. Na4 {[%clk 0:01:56.4]} 13... Rd8 {[%clk 0:02:41.9]} 14.
Rf2 {[%clk 0:01:31.6]} 14... e5 {[%clk 0:02:32.3]} 15. e3 {[%clk 0:01:16.2]}
15... exd4 {[%clk 0:02:32]} 16. exd4 {[%clk 0:01:15.8]} 16... Ng4 {[%clk
0:02:32]} 17. fxg4 {[%clk 0:00:58.7]} 17... Bxd4 {[%clk 0:02:30.4]} 18. Qe2
{[%clk 0:00:37.3]} 18... Qg2# {[%clk 0:02:27.4]} 0-1

[Event "Early-Titled-Tuesday-Blitz-January-16-2024"]
[Site "Chess.com"]
[Date "2024.01.16"]
[Round "2"]
[White "Gabrielian_Artur"]
[Black "Russian_berezka"]
[Result "1-0"]
[WhiteElo "2800"]
[BlackElo "2545"]
[TimeControl "180+1"]
[EndTime "8:15:08 PST"]
[Termination "Gabrielian_Artur won by resignation"]

1. e4 {[%clk 0:03:00.9]} 1... c5 {[%clk 0:02:59.9]} 2. Nf3 {[%clk 0:03:00.5]}
2... Nf6 {[%clk 0:03:00.2]} 3. e5 {[%clk 0:02:59.5]} 3... Nd5 {[%clk 0:03:00.1]}
4. Nc3 {[%clk 0:02:59.7]} 4... e6 {[%clk 0:02:59.9]} 5. Nxd5 {[%clk 0:02:59.2]}
5... exd5 {[%clk 0:03:00.8]} 6. d4 {[%clk 0:02:58.2]} 6... Nc6 {[%clk
0:02:59.4]} 7. dxc5 {[%clk 0:02:57.9]} 7... Bxc5 {[%clk 0:03:00.3]} 8. Qxd5
{[%clk 0:02:57.6]} 8... Qb6 {[%clk 0:03:00.7]} 9. Bc4 {[%clk 0:02:57.5]} 9...
Bxf2+ {[%clk 0:03:00.8]} 10. Kf1 {[%clk 0:02:57.8]} 10... O-O {[%clk 0:02:55]}
11. Qe4 {[%clk 0:02:57.1]} 11... d5 {[%clk 0:02:38.7]} 12. exd6 {[%clk
0:02:55.6]} 12... Bd7 {[%clk 0:02:32.4]} 13. Ng5 {[%clk 0:02:45.9]} 13... g6
{[%clk 0:02:32.8]} 14. Qf3 {[%clk 0:02:45.7]} 14... Ne5 {[%clk 0:02:22.7]} 15.
Qxf2 {[%clk 0:02:42.2]} 15... Qxf2+ {[%clk 0:02:20.5]} 16. Kxf2 {[%clk
0:02:42.4]} 16... Nxc4 {[%clk 0:02:21.1]} 17. b3 {[%clk 0:02:38.1]} 17... Ne5
{[%clk 0:01:20.3]} 18. Re1 {[%clk 0:02:33.4]} 18... f6 {[%clk 0:01:20]} 19. Ne4
{[%clk 0:02:32]} 19... Bc6 {[%clk 0:01:18.1]} 20. Bb2 {[%clk 0:02:29]} 20...
Rad8 {[%clk 0:01:15.1]} 21. Rad1 {[%clk 0:02:28.4]} 21... Rf7 {[%clk 0:01:10.6]}
22. Kg3 {[%clk 0:02:27.8]} 22... Rfd7 {[%clk 0:00:47.2]} 23. Nxf6+ {[%clk
0:02:27.1]} 1-0

[Event "Early-Titled-Tuesday-Blitz-January-16-2024"]
[Site "Chess.com"]
[Date "2024.01.16"]
[Round "2"]
[White "chenrip"]
[Black "Iskusnyh"]
[Result "0-1"]
[WhiteElo "2375"]
[BlackElo "2652"]
[TimeControl "180+1"]
[EndTime "8:15:15 PST"]
[Termination "Iskusnyh won by resignation"]

1. e4 {[%clk 0:03:00.9]} 1... e6 {[%clk 0:02:57.6]} 2. d4 {[%clk 0:03:00.5]}
2... d5 {[%clk 0:02:57.2]} 3. Nc3 {[%clk 0:03:01.1]} 3... Nf6 {[%clk 0:02:56.6]}
4. Bg5 {[%clk 0:03:00.6]} 4... dxe4 {[%clk 0:02:56.4]} 5. Nxe4 {[%clk
0:03:00.1]} 5... Nbd7 {[%clk 0:02:56.3]} 6. c3 {[%clk 0:02:57]} 6... h6 {[%clk
0:02:49.5]} 7. Bxf6 {[%clk 0:02:57]} 7... Nxf6 {[%clk 0:02:49.2]} 8. Bd3 {[%clk
0:02:56.4]} 8... Nxe4 {[%clk 0:02:34.5]} 9. Bxe4 {[%clk 0:02:55.4]} 9... c5
{[%clk 0:02:35]} 10. Nf3 {[%clk 0:02:47.5]} 10... Be7 {[%clk 0:02:28.7]} 11. O-O
{[%clk 0:02:46.7]} 11... O-O {[%clk 0:02:27.4]} 12. Qb3 {[%clk 0:02:41.9]} 12...
Qc7 {[%clk 0:02:12.7]} 13. Rad1 {[%clk 0:02:38.2]} 13... Rb8 {[%clk 0:02:07.8]}
14. Rfe1 {[%clk 0:02:31.2]} 14... cxd4 {[%clk 0:01:47.8]} 15. Nxd4 {[%clk
0:02:30.6]} 15... Bd7 {[%clk 0:01:47.2]} 16. Bb1 {[%clk 0:02:25.5]} 16... Rbd8
{[%clk 0:01:39.9]} 17. Qc2 {[%clk 0:02:24.1]} 17... g6 {[%clk 0:01:39.6]} 18.
Nxe6 {[%clk 0:02:03.5]} 18... Bxe6 {[%clk 0:01:38.2]} 19. Rxd8 {[%clk
0:02:03.3]} 19... Bxd8 {[%clk 0:01:37.6]} 20. Rxe6 {[%clk 0:01:57.6]} 20... fxe6
{[%clk 0:01:36.4]} 21. Qxg6+ {[%clk 0:01:58.1]} 21... Qg7 {[%clk 0:01:35.9]} 22.
Qxe6+ {[%clk 0:01:58]} 22... Kh8 {[%clk 0:01:35.9]} 23. g3 {[%clk 0:01:55.2]}
23... Bb6 {[%clk 0:01:35.3]} 24. Kh1 {[%clk 0:01:47.6]} 24... Rxf2 {[%clk
0:01:32.5]} 25. Be4 {[%clk 0:01:44.6]} 25... Rf6 {[%clk 0:01:28.4]} 26. Qe8+
{[%clk 0:01:43.9]} 26... Rf8 {[%clk 0:01:28]} 27. Qe6 {[%clk 0:01:44.5]} 27...
Qf6 {[%clk 0:01:27.8]} 0-1

[Event "Early-Titled-Tuesday-Blitz-January-16-2024"]
[Site "Chess.com"]
[Date "2024.01.16"]
[Round "2"]
[White "stratacticos"]
[Black "Flaccidmoves"]
[Result "0-1"]
[WhiteElo "1970"]
[BlackElo "2437"]
[TimeControl "180+1"]
[EndTime "8:15:23 PST"]
[Termination "Flaccidmoves won by resignation"]

1. e4 {[%clk 0:03:00.5]} 1... Nf6 {[%clk 0:02:54.4]} 2. e5 {[%clk 0:02:59.8]}
2... Nd5 {[%clk 0:02:54.4]} 3. c4 {[%clk 0:02:59.6]} 3... Nb6 {[%clk 0:02:53.5]}
4. c5 {[%clk 0:02:59.9]} 4... Nd5 {[%clk 0:02:53.3]} 5. Bc4 {[%clk 0:03:00.4]}
5... e6 {[%clk 0:02:53.1]} 6. Nc3 {[%clk 0:02:59.2]} 6... d6 {[%clk 0:02:50.1]}
7. cxd6 {[%clk 0:02:58]} 7... cxd6 {[%clk 0:02:49.5]} 8. Nf3 {[%clk 0:02:33.3]}
8... dxe5 {[%clk 0:02:43.5]} 9. Nxe5 {[%clk 0:02:30.5]} 9... Bd6 {[%clk
0:02:40.4]} 10. Bb5+ {[%clk 0:02:27.4]} 10... Nd7 {[%clk 0:02:36.5]} 11. d4
{[%clk 0:02:09.4]} 11... O-O {[%clk 0:02:25.5]} 12. Nxd7 {[%clk 0:01:55.9]}
12... Bxd7 {[%clk 0:02:24.7]} 13. Bd3 {[%clk 0:01:51]} 13... Qh4 {[%clk
0:02:15.2]} 14. g3 {[%clk 0:01:39.6]} 14... Qh3 {[%clk 0:02:12.6]} 15. Qf3
{[%clk 0:01:25.2]} 15... Bc6 {[%clk 0:01:56.6]} 16. Bd2 {[%clk 0:01:09.4]} 16...
Nxc3 {[%clk 0:01:50.6]} 0-1

[Event "Early-Titled-Tuesday-Blitz-January-16-2024"]
[Site "Chess.com"]
[Date "2024.01.16"]
[Round "2"]
[White "Mistango"]
[Black "Felix-Rose"]
[Result "1-0"]
[WhiteElo "2493"]
[BlackElo "2206"]
[TimeControl "180+1"]
[EndTime "8:15:35 PST"]
[Termination "Mistango won on time"]

1. e4 {[%clk 0:02:55.5]} 1... e5 {[%clk 0:02:59.5]} 2. Nf3 {[%clk 0:02:54.7]}
2... Nc6 {[%clk 0:02:59.8]} 3. d4 {[%clk 0:02:55.3]} 3... exd4 {[%clk
0:03:00.1]} 4. Nxd4 {[%clk 0:02:56.2]} 4... Nf6 {[%clk 0:03:00.3]} 5. Nxc6
{[%clk 0:02:56.7]} 5... bxc6 {[%clk 0:03:00.8]} 6. Nc3 {[%clk 0:02:57.3]} 6...
d5 {[%clk 0:02:59.8]} 7. Bd3 {[%clk 0:02:58]} 7... Bb4 {[%clk 0:02:57.6]} 8. e5
{[%clk 0:02:56.8]} 8... Ng4 {[%clk 0:02:13.6]} 9. Bf4 {[%clk 0:02:56.3]} 9...
Bc5 {[%clk 0:01:59.6]} 10. O-O {[%clk 0:02:53.1]} 10... g5 {[%clk 0:01:51.9]}
11. Bg3 {[%clk 0:02:52.9]} 11... h5 {[%clk 0:01:51.9]} 12. Be2 {[%clk 0:02:53]}
12... h4 {[%clk 0:01:21.9]} 13. Bxg4 {[%clk 0:02:48.5]} 13... hxg3 {[%clk
0:01:19.2]} 14. hxg3 {[%clk 0:02:49.4]} 14... Ba6 {[%clk 0:00:31.4]} 15. Na4
{[%clk 0:02:38.3]} 15... Bxf1 {[%clk 0:00:15.6]} 16. Nxc5 {[%clk 0:02:37.7]}
16... Bb5 {[%clk 0:00:12.3]} 17. a4 {[%clk 0:02:36.5]} 17... Qe7 {[%clk
0:00:12.7]} 18. Qd4 {[%clk 0:02:33.5]} 18... Bc4 {[%clk 0:00:07.4]} 19. b3
{[%clk 0:02:32.2]} 1-0

[Event "Early-Titled-Tuesday-Blitz-January-16-2024"]
[Site "Chess.com"]
[Date "2024.01.16"]
[Round "2"]
[White "BardArtem"]
[Black "doctorcristian"]
[Result "0-1"]
[WhiteElo "2789"]
[BlackElo "2564"]
[TimeControl "180+1"]
[EndTime "8:15:39 PST"]
[Termination "doctorcristian won by resignation"]

1. e4 {[%clk 0:02:58.1]} 1... e6 {[%clk 0:02:59.3]} 2. d4 {[%clk 0:02:57.7]}
2... d5 {[%clk 0:03:00.2]} 3. Nc3 {[%clk 0:02:58.4]} 3... Bb4 {[%clk 0:02:59.8]}
4. Ne2 {[%clk 0:02:57.5]} 4... Ne7 {[%clk 0:02:58.7]} 5. a3 {[%clk 0:02:56.9]}
5... Ba5 {[%clk 0:02:58.3]} 6. b4 {[%clk 0:02:48.8]} 6... Bb6 {[%clk 0:02:58.1]}
7. Bb2 {[%clk 0:02:49.7]} 7... O-O {[%clk 0:02:56.9]} 8. g3 {[%clk 0:02:40.7]}
8... a5 {[%clk 0:02:53.6]} 9. Bg2 {[%clk 0:02:30.8]} 9... axb4 {[%clk
0:02:52.8]} 10. axb4 {[%clk 0:02:28.3]} 10... Rxa1 {[%clk 0:02:52.7]} 11. Bxa1
{[%clk 0:02:28.7]} 11... Nbc6 {[%clk 0:02:52.1]} 12. b5 {[%clk 0:02:20.8]} 12...
Na5 {[%clk 0:02:48.8]} 13. O-O {[%clk 0:02:20.9]} 13... Nc4 {[%clk 0:02:47.9]}
14. Nf4 {[%clk 0:02:15.7]} 14... c6 {[%clk 0:02:47.8]} 15. Re1 {[%clk
0:02:05.8]} 15... Ba5 {[%clk 0:02:33]} 16. Re2 {[%clk 0:01:35.1]} 16... Ng6
{[%clk 0:02:23.1]} 17. Nxg6 {[%clk 0:01:32.2]} 17... hxg6 {[%clk 0:02:22.7]} 18.
e5 {[%clk 0:01:30]} 18... Bd7 {[%clk 0:02:19.5]} 19. bxc6 {[%clk 0:01:18.8]}
19... Bxc6 {[%clk 0:02:14.7]} 20. Nb1 {[%clk 0:01:16.2]} 20... Qb6 {[%clk
0:02:08.4]} 21. Bc3 {[%clk 0:01:12.9]} 21... Ra8 {[%clk 0:02:03.4]} 22. h4
{[%clk 0:00:54.7]} 22... Bxc3 {[%clk 0:01:59.7]} 23. Nxc3 {[%clk 0:00:55.6]}
23... Qb4 {[%clk 0:01:59.9]} 24. Qe1 {[%clk 0:00:52.4]} 24... Qb2 {[%clk
0:01:55.9]} 25. Nd1 {[%clk 0:00:52.2]} 25... Qxd4 {[%clk 0:01:55.5]} 26. Ne3
{[%clk 0:00:51.1]} 26... Ra1 {[%clk 0:01:55.1]} 0-1

[Event "Early-Titled-Tuesday-Blitz-January-16-2024"]
[Site "Chess.com"]
[Date "2024.01.16"]
[Round "2"]
[White "Statham_01"]
[Black "the_blue_pill"]
[Result "1-0"]
[WhiteElo "2546"]
[BlackElo "2317"]
[TimeControl "180+1"]
[EndTime "8:15:41 PST"]
[Termination "Statham_01 won by resignation"]

1. e4 {[%clk 0:03:00.9]} 1... g6 {[%clk 0:02:55.4]} 2. d4 {[%clk 0:03:00.8]}
2... Bg7 {[%clk 0:02:56.3]} 3. Nc3 {[%clk 0:03:01.5]} 3... d6 {[%clk 0:02:56.3]}
4. Be3 {[%clk 0:03:01.1]} 4... a6 {[%clk 0:02:56.6]} 5. g4 {[%clk 0:03:01]} 5...
b5 {[%clk 0:02:54.9]} 6. Bg2 {[%clk 0:03:01.4]} 6... Bb7 {[%clk 0:02:52.9]} 7.
h4 {[%clk 0:03:01.6]} 7... h5 {[%clk 0:02:42.7]} 8. gxh5 {[%clk 0:03:02.5]} 8...
Rxh5 {[%clk 0:02:41.8]} 9. Bf3 {[%clk 0:03:02.5]} 9... Rh8 {[%clk 0:02:41.5]}
10. h5 {[%clk 0:03:03.2]} 10... gxh5 {[%clk 0:02:41.6]} 11. Rxh5 {[%clk
0:03:01.6]} 11... Rxh5 {[%clk 0:02:40.7]} 12. Bxh5 {[%clk 0:03:02.5]} 12... Nf6
{[%clk 0:02:32.5]} 13. Nh3 {[%clk 0:03:03]} 13... b4 {[%clk 0:02:25.4]} 14. Ng5
{[%clk 0:02:55.5]} 14... bxc3 {[%clk 0:02:04.1]} 15. Bxf7+ {[%clk 0:01:49.5]}
15... Kd7 {[%clk 0:02:02.1]} 16. Be6+ {[%clk 0:01:50.1]} 16... Ke8 {[%clk
0:01:46.3]} 17. Nh7 {[%clk 0:01:50.3]} 1-0

[Event "Early-Titled-Tuesday-Blitz-January-16-2024"]
[Site "Chess.com"]
[Date "2024.01.16"]
[Round "2"]
[White "Barmen_EV"]
[Black "LaPiToB"]
[Result "1-0"]
[WhiteElo "2542"]
[BlackElo "2305"]
[TimeControl "180+1"]
[EndTime "8:15:41 PST"]
[Termination "Barmen_EV won by resignation"]

1. e4 {[%clk 0:03:00.9]} 1... c6 {[%clk 0:02:57.6]} 2. d4 {[%clk 0:03:00.4]}
2... d5 {[%clk 0:02:57.7]} 3. e5 {[%clk 0:03:01.1]} 3... Bf5 {[%clk 0:02:56.9]}
4. h4 {[%clk 0:03:01.3]} 4... h5 {[%clk 0:02:56]} 5. Bg5 {[%clk 0:03:01.1]} 5...
Qa5+ {[%clk 0:02:50.2]} 6. c3 {[%clk 0:02:57.2]} 6... e6 {[%clk 0:02:47.6]} 7.
Bd3 {[%clk 0:02:55.4]} 7... Bxd3 {[%clk 0:02:43.6]} 8. Qxd3 {[%clk 0:02:56.3]}
8... c5 {[%clk 0:02:42.6]} 9. Nd2 {[%clk 0:02:54.9]} 9... cxd4 {[%clk
0:02:39.2]} 10. cxd4 {[%clk 0:02:55.2]} 10... Qa6 {[%clk 0:02:38.7]} 11. Qf3
{[%clk 0:02:48.7]} 11... Nc6 {[%clk 0:02:29.8]} 12. Ne2 {[%clk 0:02:48.4]} 12...
Nge7 {[%clk 0:02:27.8]} 13. O-O {[%clk 0:02:44.5]} 13... Nf5 {[%clk 0:02:26.9]}
14. Nb3 {[%clk 0:02:44]} 14... Rc8 {[%clk 0:01:51.4]} 15. Rfd1 {[%clk
0:02:43.1]} 15... b6 {[%clk 0:01:31.7]} 16. Ng3 {[%clk 0:02:39.6]} 16... g6
{[%clk 0:01:24.9]} 17. Bf6 {[%clk 0:02:32.3]} 17... Rg8 {[%clk 0:01:17.1]} 18.
Nxf5 {[%clk 0:02:31.6]} 18... gxf5 {[%clk 0:01:17]} 19. Qxh5 {[%clk 0:02:31]}
19... Rg4 {[%clk 0:01:09.4]} 20. Rac1 {[%clk 0:02:28]} 20... Nb4 {[%clk
0:01:02.2]} 21. Rxc8+ {[%clk 0:01:56.7]} 21... Qxc8 {[%clk 0:01:03.1]} 22. Rc1
{[%clk 0:01:56.8]} 22... Qa6 {[%clk 0:01:01.1]} 23. Rc7 {[%clk 0:01:52.3]} 1-0

[Event "Early-Titled-Tuesday-Blitz-January-16-2024"]
[Site "Chess.com"]
[Date "2024.01.16"]
[Round "2"]
[White "Cambek64"]
[Black "DonkyDonkyDonkey"]
[Result "0-1"]
[WhiteElo "2441"]
[BlackElo "2758"]
[TimeControl "180+1"]
[EndTime "8:16:08 PST"]
[Termination "DonkyDonkyDonkey won by resignation"]

1. b3 {[%clk 0:03:00.9]} 1... e5 {[%clk 0:03:00.1]} 2. Bb2 {[%clk 0:03:01.3]}
2... Nc6 {[%clk 0:03:00.8]} 3. e3 {[%clk 0:03:01.1]} 3... e4 {[%clk 0:03:01.3]}
4. c4 {[%clk 0:02:57.8]} 4... Nf6 {[%clk 0:03:01.3]} 5. d3 {[%clk 0:02:53.2]}
5... exd3 {[%clk 0:02:58.8]} 6. Bxd3 {[%clk 0:02:53.4]} 6... d5 {[%clk
0:02:59.5]} 7. cxd5 {[%clk 0:02:34.2]} 7... Qxd5 {[%clk 0:03:00.4]} 8. Nf3
{[%clk 0:02:34.3]} 8... Bg4 {[%clk 0:02:53.9]} 9. Nc3 {[%clk 0:02:34.5]} 9...
Qh5 {[%clk 0:02:48.5]} 10. Ne4 {[%clk 0:02:16.9]} 10... Bb4+ {[%clk 0:02:30.2]}
11. Ke2 {[%clk 0:02:08.4]} 11... O-O-O {[%clk 0:01:47]} 12. Nxf6 {[%clk
0:01:43]} 12... gxf6 {[%clk 0:01:47.9]} 13. Bxf6 {[%clk 0:01:37.5]} 13... Ne5
{[%clk 0:01:48.4]} 14. Bxe5 {[%clk 0:01:32.2]} 14... Qxe5 {[%clk 0:01:49.3]} 15.
Qc2 {[%clk 0:01:28.9]} 15... Rxd3 {[%clk 0:01:11.2]} 16. Qxd3 {[%clk 0:01:21.8]}
16... Qb2+ {[%clk 0:01:10.2]} 17. Kf1 {[%clk 0:01:07.8]} 17... Qxa1+ {[%clk
0:01:09.9]} 18. Ke2 {[%clk 0:01:08]} 18... Qxh1 {[%clk 0:01:07.8]} 19. Qc4
{[%clk 0:01:04.4]} 19... Bxf3+ {[%clk 0:01:07]} 20. gxf3 {[%clk 0:01:04]} 20...
Rd8 {[%clk 0:01:07.6]} 0-1

[Event "Early-Titled-Tuesday-Blitz-January-16-2024"]
[Site "Chess.com"]
[Date "2024.01.16"]
[Round "2"]
[White "PapaieDudu"]
[Black "jcibarra"]
[Result "0-1"]
[WhiteElo "2413"]
[BlackElo "2859"]
[TimeControl "180+1"]
[EndTime "8:16:11 PST"]
[Termination "jcibarra won by resignation"]

1. e4 {[%clk 0:03:00.4]} 1... c5 {[%clk 0:02:59.9]} 2. Nf3 {[%clk 0:03:00.1]}
2... e6 {[%clk 0:03:00.5]} 3. d4 {[%clk 0:03:00.4]} 3... cxd4 {[%clk 0:03:01.2]}
4. c3 {[%clk 0:03:00.3]} 4... Nf6 {[%clk 0:03:00]} 5. e5 {[%clk 0:02:59.8]} 5...
Nd5 {[%clk 0:03:00.6]} 6. cxd4 {[%clk 0:03:00.3]} 6... d6 {[%clk 0:03:01]} 7.
Nc3 {[%clk 0:03:00.9]} 7... Nxc3 {[%clk 0:03:01.1]} 8. bxc3 {[%clk 0:03:00.8]}
8... Qc7 {[%clk 0:03:01.4]} 9. exd6 {[%clk 0:03:00.2]} 9... Bxd6 {[%clk
0:02:59.1]} 10. Qc2 {[%clk 0:02:59.7]} 10... Nd7 {[%clk 0:02:56.7]} 11. Bd3
{[%clk 0:02:59.5]} 11... b6 {[%clk 0:02:57.2]} 12. O-O {[%clk 0:02:58.9]} 12...
Bb7 {[%clk 0:02:57.1]} 13. Be4 {[%clk 0:02:56.8]} 13... Bxe4 {[%clk 0:02:53.5]}
14. Qxe4 {[%clk 0:02:57]} 14... O-O {[%clk 0:02:54.1]} 15. a4 {[%clk 0:02:55.2]}
15... Nf6 {[%clk 0:02:42.5]} 16. Qh4 {[%clk 0:02:54.3]} 16... Qxc3 {[%clk
0:02:38.2]} 17. Bg5 {[%clk 0:02:52.8]} 17... Nd5 {[%clk 0:02:37.8]} 18. Nd2
{[%clk 0:02:42.4]} 18... f6 {[%clk 0:02:27.9]} 19. Ne4 {[%clk 0:02:08.7]} 19...
fxg5 {[%clk 0:02:26.6]} 20. Nxg5 {[%clk 0:02:07]} 20... Qd3 {[%clk 0:02:19.9]}
21. Nxe6 {[%clk 0:01:20.8]} 21... Rf6 {[%clk 0:02:19]} 22. Ng5 {[%clk
0:01:05.7]} 22... Rh6 {[%clk 0:02:17.3]} 23. Qg4 {[%clk 0:01:04.1]} 23... Bxh2+
{[%clk 0:02:16.9]} 24. Kh1 {[%clk 0:01:04.7]} 24... Bf4+ {[%clk 0:02:09.2]} 25.
Kg1 {[%clk 0:01:04.7]} 25... Qg6 {[%clk 0:02:07.2]} 26. Rac1 {[%clk 0:00:58.6]}
26... Bxc1 {[%clk 0:01:41.3]} 27. Rxc1 {[%clk 0:00:59.5]} 27... Rf8 {[%clk
0:01:40.5]} 28. f4 {[%clk 0:00:56.9]} 28... Nxf4 {[%clk 0:01:38]} 29. Rc8 {[%clk
0:00:55]} 29... Ne2+ {[%clk 0:01:26.7]} 30. Qxe2 {[%clk 0:00:52.7]} 30... Qb1+
{[%clk 0:01:25.8]} 0-1